[Event "Late-Titled-Tuesday-Blitz-October-24-2023"]
[Site "Chess.com"]
[Date "2023.10.24"]
[Round "6"]
[White "Chessdreamer2020"]
[Black "effefe"]
[Result "1-0"]
[WhiteElo "2489"]
[BlackElo "2336"]
[TimeControl "180+1"]
[EndTime "15:05:35 PDT"]
[Termination "Chessdreamer2020 won by resignation"]

1. e4 {[%clk 0:03:00]} 1... c5 {[%clk 0:02:57.9]} 2. Nf3 {[%clk 0:02:59.8]} 2...
d6 {[%clk 0:02:57.5]} 3. Bb5+ {[%clk 0:02:59.2]} 3... Nd7 {[%clk 0:02:57.4]} 4.
a4 {[%clk 0:02:58.6]} 4... Nf6 {[%clk 0:02:52.7]} 5. Nc3 {[%clk 0:02:58.1]} 5...
a6 {[%clk 0:02:52.3]} 6. Be2 {[%clk 0:02:58.3]} 6... g6 {[%clk 0:02:51.4]} 7.
O-O {[%clk 0:02:57.4]} 7... Bg7 {[%clk 0:02:43.2]} 8. a5 {[%clk 0:02:57.6]} 8...
O-O {[%clk 0:02:42.1]} 9. d3 {[%clk 0:02:57.3]} 9... e5 {[%clk 0:02:12.4]} 10.
Nd2 {[%clk 0:02:50.8]} 10... Ne8 {[%clk 0:02:06.4]} 11. Nc4 {[%clk 0:02:50.1]}
11... f5 {[%clk 0:02:01.1]} 12. Nd5 {[%clk 0:02:49.6]} 12... Ndf6 {[%clk
0:01:30.7]} 13. Bg5 {[%clk 0:02:45.4]} 13... h6 {[%clk 0:01:17.4]} 14. Bxf6
{[%clk 0:02:44.5]} 14... Nxf6 {[%clk 0:01:18.3]} 15. Ncb6 {[%clk 0:02:38.7]}
15... Rb8 {[%clk 0:01:15.5]} 16. exf5 {[%clk 0:02:19.7]} 16... Bxf5 {[%clk
0:01:11]} 17. Bf3 {[%clk 0:02:15.7]} 17... g5 {[%clk 0:01:08.7]} 18. Re1 {[%clk
0:02:06]} 18... Kh8 {[%clk 0:00:44.2]} 19. h3 {[%clk 0:02:00.2]} 19... Nxd5
{[%clk 0:00:37]} 20. Nxd5 {[%clk 0:01:58.7]} 20... Qd7 {[%clk 0:00:35.4]} 21.
Be4 {[%clk 0:01:54.1]} 21... Be6 {[%clk 0:00:35.3]} 22. Qh5 {[%clk 0:01:50.9]}
22... Qf7 {[%clk 0:00:18.8]} 23. Qxf7 {[%clk 0:01:47.5]} 23... Rxf7 {[%clk
0:00:18.8]} 24. c4 {[%clk 0:01:44.4]} 24... Rbf8 {[%clk 0:00:19.2]} 25. f3
{[%clk 0:01:44.6]} 25... Bxd5 {[%clk 0:00:10.8]} 26. Bxd5 {[%clk 0:01:44.6]}
26... Re7 {[%clk 0:00:10.2]} 27. Be4 {[%clk 0:01:42.9]} 27... Bf6 {[%clk
0:00:09.8]} 28. Rab1 {[%clk 0:01:38.8]} 28... Kg7 {[%clk 0:00:10.4]} 29. b4
{[%clk 0:01:38.8]} 29... cxb4 {[%clk 0:00:10.2]} 30. Rxb4 {[%clk 0:01:39.7]}
30... Rff7 {[%clk 0:00:07.2]} 31. Reb1 {[%clk 0:01:40]} 31... Rc7 {[%clk
0:00:07.5]} 32. Bxb7 {[%clk 0:01:39.5]} 32... Be7 {[%clk 0:00:06.4]} 33. Bd5
{[%clk 0:01:37.3]} 33... Rf6 {[%clk 0:00:04]} 34. Rb6 {[%clk 0:01:37.3]} 34...
Kg6 {[%clk 0:00:02.1]} 35. Rxa6 {[%clk 0:01:37.4]} 35... h5 {[%clk 0:00:02.3]}
36. Rab6 {[%clk 0:01:30.7]} 36... Ra7 {[%clk 0:00:02.4]} 37. a6 {[%clk
0:01:30.5]} 37... Bd8 {[%clk 0:00:03]} 38. Rb8 {[%clk 0:01:25.8]} 38... Bc7
{[%clk 0:00:02]} 39. R8b7 {[%clk 0:01:26.1]} 39... Rxb7 {[%clk 0:00:02]} 40.
Bxb7 {[%clk 0:01:25.8]} 40... Bb8 {[%clk 0:00:02.1]} 41. Be4+ {[%clk 0:01:25.6]}
41... Kh6 {[%clk 0:00:01.7]} 42. Rxb8 {[%clk 0:01:26.5]} 42... d5 {[%clk
0:00:01.5]} 43. a7 {[%clk 0:01:24.8]} 43... Ra6 {[%clk 0:00:02.4]} 44. a8=Q
{[%clk 0:01:22.2]} 44... Rxa8 {[%clk 0:00:02.6]} 45. Rxa8 {[%clk 0:01:23.1]}
45... d4 {[%clk 0:00:02.8]} 46. Ra7 {[%clk 0:01:20.7]} 1-0

[Event "Late-Titled-Tuesday-Blitz-October-24-2023"]
[Site "Chess.com"]
[Date "2023.10.24"]
[Round "6"]
[White "ElCoachRene"]
[Black "talaicito"]
[Result "0-1"]
[WhiteElo "2022"]
[BlackElo "2228"]
[TimeControl "180+1"]
[EndTime "15:05:41 PDT"]
[Termination "talaicito won on time"]

1. Nf3 {[%clk 0:02:59.7]} 1... b6 {[%clk 0:03:00.4]} 2. d4 {[%clk 0:02:58.1]}
2... Bb7 {[%clk 0:03:01.3]} 3. Bf4 {[%clk 0:02:57.8]} 3... g6 {[%clk 0:03:02.2]}
4. e3 {[%clk 0:02:57.2]} 4... Bg7 {[%clk 0:03:02.7]} 5. Nbd2 {[%clk 0:02:56.3]}
5... e6 {[%clk 0:03:03.3]} 6. Bd3 {[%clk 0:02:54.7]} 6... Ne7 {[%clk 0:03:03.8]}
7. h4 {[%clk 0:02:53.1]} 7... h6 {[%clk 0:03:03.2]} 8. Qe2 {[%clk 0:02:51.7]}
8... d6 {[%clk 0:03:02.4]} 9. e4 {[%clk 0:02:48.3]} 9... Nd7 {[%clk 0:03:02.1]}
10. e5 {[%clk 0:02:47]} 10... d5 {[%clk 0:03:00.7]} 11. c3 {[%clk 0:02:42]}
11... c5 {[%clk 0:03:00.6]} 12. Ba6 {[%clk 0:02:33.2]} 12... Bxa6 {[%clk
0:02:49.7]} 13. Qxa6 {[%clk 0:02:32.4]} 13... Qc7 {[%clk 0:02:50.2]} 14. a4
{[%clk 0:02:29.3]} 14... O-O {[%clk 0:02:30.1]} 15. Qd3 {[%clk 0:02:20.3]} 15...
Nc6 {[%clk 0:02:24.1]} 16. h5 {[%clk 0:02:19.7]} 16... cxd4 {[%clk 0:02:18.8]}
17. hxg6 {[%clk 0:02:13.9]} 17... fxg6 {[%clk 0:02:02.8]} 18. Bxh6 {[%clk
0:02:05.2]} 18... Ndxe5 {[%clk 0:02:02.2]} 19. Nxe5 {[%clk 0:01:53.8]} 19...
Nxe5 {[%clk 0:02:03.1]} 20. Qg3 {[%clk 0:01:51.8]} 20... dxc3 {[%clk 0:01:55.5]}
21. bxc3 {[%clk 0:01:45.7]} 21... Bxh6 {[%clk 0:00:57.8]} 22. Rxh6 {[%clk
0:01:42.6]} 22... Qg7 {[%clk 0:00:58.3]} 23. Rh4 {[%clk 0:01:31.7]} 23... Rac8
{[%clk 0:00:57.5]} 24. Kf1 {[%clk 0:01:21.8]} 24... Rf5 {[%clk 0:00:32.6]} 25.
Re1 {[%clk 0:01:20.9]} 25... Rcf8 {[%clk 0:00:28.1]} 26. Kg1 {[%clk 0:01:20]}
26... Rxf2 {[%clk 0:00:23.4]} 0-1

[Event "Late-Titled-Tuesday-Blitz-October-24-2023"]
[Site "Chess.com"]
[Date "2023.10.24"]
[Round "6"]
[White "stasOR4ik"]
[Black "NMJeevanK"]
[Result "1-0"]
[WhiteElo "2403"]
[BlackElo "2578"]
[TimeControl "180+1"]
[EndTime "15:05:49 PDT"]
[Termination "stasOR4ik won by checkmate"]

1. e4 {[%clk 0:03:00.9]} 1... d6 {[%clk 0:02:59.9]} 2. c4 {[%clk 0:03:00.7]}
2... e5 {[%clk 0:02:59.2]} 3. Nc3 {[%clk 0:03:01.3]} 3... Nf6 {[%clk 0:02:59.3]}
4. g3 {[%clk 0:03:01.9]} 4... g6 {[%clk 0:02:54.5]} 5. Bg2 {[%clk 0:03:02.2]}
5... Bg7 {[%clk 0:02:55.2]} 6. Nge2 {[%clk 0:03:02.3]} 6... O-O {[%clk
0:02:55.9]} 7. O-O {[%clk 0:03:02.6]} 7... Nc6 {[%clk 0:02:55.9]} 8. h3 {[%clk
0:03:01.9]} 8... Nd4 {[%clk 0:02:56.2]} 9. d3 {[%clk 0:02:56.7]} 9... Ne8 {[%clk
0:02:51.1]} 10. f4 {[%clk 0:02:44]} 10... f5 {[%clk 0:02:48.7]} 11. Be3 {[%clk
0:02:32.3]} 11... c5 {[%clk 0:02:38.7]} 12. Nd5 {[%clk 0:02:23.9]} 12... fxe4
{[%clk 0:02:35.3]} 13. dxe4 {[%clk 0:02:17.5]} 13... Nc7 {[%clk 0:02:29.2]} 14.
Qd2 {[%clk 0:02:05.6]} 14... Nxd5 {[%clk 0:02:26.1]} 15. exd5 {[%clk 0:02:03.3]}
15... Bd7 {[%clk 0:02:20.5]} 16. fxe5 {[%clk 0:01:59.9]} 16... dxe5 {[%clk
0:02:21.4]} 17. Nc3 {[%clk 0:01:56.9]} 17... Bf5 {[%clk 0:02:06.5]} 18. Ne4
{[%clk 0:01:51.8]} 18... b6 {[%clk 0:02:02.3]} 19. g4 {[%clk 0:01:45.7]} 19...
Bxe4 {[%clk 0:02:02]} 20. Bxe4 {[%clk 0:01:46]} 20... Qh4 {[%clk 0:02:02.1]} 21.
Kg2 {[%clk 0:01:45.2]} 21... Qe7 {[%clk 0:01:47.9]} 22. Bg5 {[%clk 0:01:35.5]}
22... Qd6 {[%clk 0:01:44.4]} 23. Rxf8+ {[%clk 0:01:19.5]} 23... Rxf8 {[%clk
0:01:43.3]} 24. Rf1 {[%clk 0:01:20.1]} 24... Rxf1 {[%clk 0:01:37.6]} 25. Kxf1
{[%clk 0:01:21]} 25... h6 {[%clk 0:01:37.9]} 26. Be3 {[%clk 0:01:12.9]} 26...
Kh7 {[%clk 0:01:29.4]} 27. Kg2 {[%clk 0:01:11]} 27... a6 {[%clk 0:01:20.1]} 28.
h4 {[%clk 0:01:02.8]} 28... Qd7 {[%clk 0:01:13.3]} 29. Kg3 {[%clk 0:01:02.4]}
29... h5 {[%clk 0:01:07.3]} 30. gxh5 {[%clk 0:00:50.6]} 30... Nf5+ {[%clk
0:01:07.5]} 31. Kh2 {[%clk 0:00:45.1]} 31... Nxh4 {[%clk 0:01:03.4]} 32. hxg6+
{[%clk 0:00:24.9]} 32... Kh8 {[%clk 0:00:41.2]} 33. Qe2 {[%clk 0:00:21.6]} 33...
Bf6 {[%clk 0:00:33.4]} 34. Qh5+ {[%clk 0:00:20.6]} 34... Kg8 {[%clk 0:00:34]}
35. d6 {[%clk 0:00:18.3]} 35... Qxd6 {[%clk 0:00:19.3]} 36. Qh7+ {[%clk
0:00:17.6]} 36... Kf8 {[%clk 0:00:19.6]} 37. Qf7# {[%clk 0:00:18.4]} 1-0

[Event "Late-Titled-Tuesday-Blitz-October-24-2023"]
[Site "Chess.com"]
[Date "2023.10.24"]
[Round "6"]
[White "gahryman"]
[Black "MaxLeto"]
[Result "0-1"]
[WhiteElo "2669"]
[BlackElo "2572"]
[TimeControl "180+1"]
[EndTime "15:05:51 PDT"]
[Termination "MaxLeto won on time"]

1. e4 {[%clk 0:03:00.9]} 1... c5 {[%clk 0:03:00.4]} 2. Nc3 {[%clk 0:02:59.2]}
2... d6 {[%clk 0:03:00.2]} 3. Bc4 {[%clk 0:02:58.2]} 3... e6 {[%clk 0:02:56.8]}
4. d3 {[%clk 0:02:57.5]} 4... a6 {[%clk 0:02:57]} 5. a3 {[%clk 0:02:57.3]} 5...
b5 {[%clk 0:02:57.2]} 6. Ba2 {[%clk 0:02:58]} 6... Bb7 {[%clk 0:02:57.9]} 7.
Nge2 {[%clk 0:02:56]} 7... Nf6 {[%clk 0:02:57.4]} 8. O-O {[%clk 0:02:54.7]} 8...
Be7 {[%clk 0:02:57.9]} 9. f4 {[%clk 0:02:51.4]} 9... O-O {[%clk 0:02:54.7]} 10.
f5 {[%clk 0:02:51.7]} 10... d5 {[%clk 0:02:43.7]} 11. fxe6 {[%clk 0:02:37.1]}
11... fxe6 {[%clk 0:02:41.2]} 12. Nf4 {[%clk 0:02:37.7]} 12... Qd7 {[%clk
0:02:26.4]} 13. e5 {[%clk 0:02:14.2]} 13... Ne8 {[%clk 0:02:22.5]} 14. Qg4
{[%clk 0:02:02.9]} 14... Nc7 {[%clk 0:02:06.5]} 15. Bd2 {[%clk 0:01:57.1]} 15...
b4 {[%clk 0:01:17.3]} 16. axb4 {[%clk 0:01:51.1]} 16... cxb4 {[%clk 0:01:18.2]}
17. Nce2 {[%clk 0:01:20.3]} 17... Nc6 {[%clk 0:01:17.9]} 18. d4 {[%clk
0:01:16.5]} 18... Rf7 {[%clk 0:00:59.8]} 19. c4 {[%clk 0:00:55.1]} 19... dxc4
{[%clk 0:00:41.7]} 20. Bxc4 {[%clk 0:00:51.7]} 20... Nxd4 {[%clk 0:00:42.3]} 21.
Be3 {[%clk 0:00:29]} 21... Nc2 {[%clk 0:00:33.9]} 22. Rad1 {[%clk 0:00:23.5]}
22... Qc6 {[%clk 0:00:29.7]} 23. Bxe6 {[%clk 0:00:06.4]} 23... Nxe6 {[%clk
0:00:26.1]} 24. Nd5 {[%clk 0:00:02.8]} 24... Nxe3 {[%clk 0:00:17.9]} 25. Nxe3
{[%clk 0:00:02.8]} 25... Rxf1+ {[%clk 0:00:16.7]} 26. Rxf1 {[%clk 0:00:02.4]}
26... Bc5 {[%clk 0:00:17.6]} 0-1

[Event "Late-Titled-Tuesday-Blitz-October-24-2023"]
[Site "Chess.com"]
[Date "2023.10.24"]
[Round "6"]
[White "Cayse"]
[Black "shimastream"]
[Result "1-0"]
[WhiteElo "2892"]
[BlackElo "2971"]
[TimeControl "180+1"]
[EndTime "15:05:52 PDT"]
[Termination "Cayse won by checkmate"]

1. e4 {[%clk 0:03:00.9]} 1... e6 {[%clk 0:03:00]} 2. d4 {[%clk 0:03:00.4]} 2...
d5 {[%clk 0:03:00.7]} 3. e5 {[%clk 0:03:00.9]} 3... c5 {[%clk 0:03:00.2]} 4. c3
{[%clk 0:03:01.3]} 4... Nc6 {[%clk 0:02:59.9]} 5. Nf3 {[%clk 0:03:00.8]} 5...
Nge7 {[%clk 0:03:00.3]} 6. Na3 {[%clk 0:03:00.1]} 6... Bd7 {[%clk 0:02:57.5]} 7.
Be2 {[%clk 0:02:59]} 7... Nf5 {[%clk 0:02:53.3]} 8. Nc2 {[%clk 0:02:58.2]} 8...
cxd4 {[%clk 0:02:35.4]} 9. cxd4 {[%clk 0:02:57.9]} 9... Be7 {[%clk 0:02:34.4]}
10. O-O {[%clk 0:02:55]} 10... h5 {[%clk 0:02:27]} 11. Bd3 {[%clk 0:02:52.1]}
11... g5 {[%clk 0:02:26.4]} 12. Be3 {[%clk 0:02:27.2]} 12... g4 {[%clk
0:02:23.9]} 13. Nfe1 {[%clk 0:02:27]} 13... Nxe3 {[%clk 0:02:17]} 14. fxe3
{[%clk 0:02:26.8]} 14... Bg5 {[%clk 0:02:10.2]} 15. Qd2 {[%clk 0:02:15.9]} 15...
Qe7 {[%clk 0:02:10.4]} 16. b4 {[%clk 0:02:11.3]} 16... a6 {[%clk 0:01:59.6]} 17.
Rb1 {[%clk 0:02:09.8]} 17... Na7 {[%clk 0:01:56.1]} 18. Be2 {[%clk 0:02:07.7]}
18... Ba4 {[%clk 0:01:55.2]} 19. Na3 {[%clk 0:01:58.1]} 19... Rc8 {[%clk
0:01:46.2]} 20. Kh1 {[%clk 0:01:37.3]} 20... O-O {[%clk 0:01:44.4]} 21. Nd3
{[%clk 0:01:18.2]} 21... Nb5 {[%clk 0:01:32.5]} 22. Nxb5 {[%clk 0:01:17.7]}
22... Rc2 {[%clk 0:01:32.5]} 23. Qd1 {[%clk 0:01:18.1]} 23... Rxa2 {[%clk
0:01:32.8]} 24. Qe1 {[%clk 0:01:06.8]} 24... Bxb5 {[%clk 0:01:32.8]} 25. Nf4
{[%clk 0:00:59.2]} 25... Bxf4 {[%clk 0:01:21.1]} 26. Bxb5 {[%clk 0:00:58.1]}
26... Bh6 {[%clk 0:01:16.2]} 27. Bd3 {[%clk 0:00:47.9]} 27... Qg5 {[%clk
0:01:15.6]} 28. Rb3 {[%clk 0:00:33.1]} 28... Kg7 {[%clk 0:01:08.1]} 29. Bb1
{[%clk 0:00:31.9]} 29... Ra1 {[%clk 0:01:03]} 30. Qc3 {[%clk 0:00:27.1]} 30...
Ra4 {[%clk 0:01:00]} 31. g3 {[%clk 0:00:25.6]} 31... a5 {[%clk 0:00:33.9]} 32.
Qc2 {[%clk 0:00:25.7]} 32... Rh8 {[%clk 0:00:29]} 33. bxa5 {[%clk 0:00:24.9]}
33... Rc4 {[%clk 0:00:28.7]} 34. Qf2 {[%clk 0:00:21.5]} 34... Rc7 {[%clk
0:00:28.8]} 35. Rc3 {[%clk 0:00:18.9]} 35... Re7 {[%clk 0:00:27.5]} 36. Qf6+
{[%clk 0:00:17.7]} 36... Kg8 {[%clk 0:00:27]} 37. Rc8+ {[%clk 0:00:17.2]} 37...
Bf8 {[%clk 0:00:27.2]} 38. Qxg5# {[%clk 0:00:17.5]} 1-0

[Event "Late-Titled-Tuesday-Blitz-October-24-2023"]
[Site "Chess.com"]
[Date "2023.10.24"]
[Round "6"]
[White "expii"]
[Black "Kombinator01"]
[Result "0-1"]
[WhiteElo "2227"]
[BlackElo "2417"]
[TimeControl "180+1"]
[EndTime "15:06:02 PDT"]
[Termination "Kombinator01 won by resignation"]

1. e4 {[%clk 0:03:00.9]} 1... e5 {[%clk 0:03:00.2]} 2. Nf3 {[%clk 0:02:59.1]}
2... Nf6 {[%clk 0:03:00.7]} 3. Nxe5 {[%clk 0:02:52]} 3... Nxe4 {[%clk
0:03:00.9]} 4. Nf3 {[%clk 0:02:49.1]} 4... d5 {[%clk 0:02:56.6]} 5. d4 {[%clk
0:02:47.6]} 5... Bd6 {[%clk 0:02:56]} 6. Bd3 {[%clk 0:02:45.2]} 6... O-O {[%clk
0:02:54.5]} 7. O-O {[%clk 0:02:38.9]} 7... Re8 {[%clk 0:02:51.2]} 8. Re1 {[%clk
0:02:37.4]} 8... Nf6 {[%clk 0:02:39.5]} 9. Bg5 {[%clk 0:02:35.5]} 9... Bd7
{[%clk 0:02:24.1]} 10. c3 {[%clk 0:02:20.3]} 10... h6 {[%clk 0:02:22.6]} 11.
Bxf6 {[%clk 0:02:12.7]} 11... Qxf6 {[%clk 0:02:20.9]} 12. h3 {[%clk 0:02:11.6]}
12... Nc6 {[%clk 0:02:16]} 13. Nbd2 {[%clk 0:02:06.1]} 13... Qf4 {[%clk
0:02:14.9]} 14. Qc2 {[%clk 0:01:55.7]} 14... Ne7 {[%clk 0:02:04.8]} 15. Re2
{[%clk 0:01:32.7]} 15... Nf5 {[%clk 0:02:03.3]} 16. Rae1 {[%clk 0:01:26.2]}
16... Nh4 {[%clk 0:02:02.3]} 17. Rxe8+ {[%clk 0:01:00.6]} 17... Bxe8 {[%clk
0:01:58.4]} 18. Kf1 {[%clk 0:00:44.4]} 18... Bd7 {[%clk 0:01:49.9]} 19. Re3
{[%clk 0:00:40.9]} 19... Nf5 {[%clk 0:01:46.9]} 20. Re2 {[%clk 0:00:34.3]} 20...
Nh4 {[%clk 0:01:26]} 21. Nxh4 {[%clk 0:00:29.8]} 21... Qxh4 {[%clk 0:01:25.5]}
22. Bf5 {[%clk 0:00:23.6]} 22... Bb5 {[%clk 0:01:20.3]} 23. Bd3 {[%clk
0:00:23.2]} 23... Bd7 {[%clk 0:01:20.7]} 24. Bf5 {[%clk 0:00:23.2]} 24... Bb5
{[%clk 0:01:20.1]} 25. Bd3 {[%clk 0:00:23.4]} 25... Bc6 {[%clk 0:01:20.2]} 26.
a4 {[%clk 0:00:20.8]} 26... a6 {[%clk 0:01:19.5]} 27. b4 {[%clk 0:00:20.9]}
27... b5 {[%clk 0:01:20.1]} 28. a5 {[%clk 0:00:20.5]} 28... Qf4 {[%clk
0:01:16.1]} 29. Nf3 {[%clk 0:00:19.3]} 29... Bd7 {[%clk 0:01:16.5]} 30. Ng1
{[%clk 0:00:17.8]} 30... Rf8 {[%clk 0:01:12.3]} 31. Qd2 {[%clk 0:00:17.8]} 31...
Qf6 {[%clk 0:01:11.5]} 32. Qe3 {[%clk 0:00:15.8]} 32... Re8 {[%clk 0:01:05.7]}
33. Qf3 {[%clk 0:00:15.6]} 33... Qxf3 {[%clk 0:01:02]} 34. Nxf3 {[%clk
0:00:16.5]} 34... c6 {[%clk 0:00:58.3]} 35. Ne5 {[%clk 0:00:14.4]} 35... Bxe5
{[%clk 0:00:58]} 36. Rxe5 {[%clk 0:00:15.1]} 36... Rd8 {[%clk 0:00:56.1]} 37. f4
{[%clk 0:00:14.4]} 37... f6 {[%clk 0:00:56.5]} 38. Re1 {[%clk 0:00:13.6]} 38...
Kf7 {[%clk 0:00:57.1]} 39. Kf2 {[%clk 0:00:14.1]} 39... g5 {[%clk 0:00:54.3]}
40. f5 {[%clk 0:00:13.4]} 40... Rg8 {[%clk 0:00:51.1]} 41. g4 {[%clk 0:00:13.4]}
41... h5 {[%clk 0:00:49.2]} 42. Kg3 {[%clk 0:00:13.7]} 42... Rh8 {[%clk
0:00:48.9]} 43. Be2 {[%clk 0:00:12.2]} 43... Bc8 {[%clk 0:00:45.9]} 44. Bf3
{[%clk 0:00:12.3]} 44... Bd7 {[%clk 0:00:45.8]} 45. Re2 {[%clk 0:00:12.5]} 45...
Bc8 {[%clk 0:00:45.9]} 46. Re1 {[%clk 0:00:12.7]} 46... Rh7 {[%clk 0:00:43.6]}
47. Re2 {[%clk 0:00:12.9]} 47... Bd7 {[%clk 0:00:44.1]} 48. Re1 {[%clk 0:00:13]}
48... hxg4 {[%clk 0:00:41.6]} 49. Re2 {[%clk 0:00:13.2]} 49... gxf3 {[%clk
0:00:41.5]} 0-1

[Event "Late-Titled-Tuesday-Blitz-October-24-2023"]
[Site "Chess.com"]
[Date "2023.10.24"]
[Round "6"]
[White "ValeriyGrinev"]
[Black "IlanSchnaider"]
[Result "1-0"]
[WhiteElo "2617"]
[BlackElo "2761"]
[TimeControl "180+1"]
[EndTime "15:06:09 PDT"]
[Termination "ValeriyGrinev won on time"]

1. d4 {[%clk 0:03:00.9]} 1... Nf6 {[%clk 0:02:58.4]} 2. c4 {[%clk 0:03:01]} 2...
g6 {[%clk 0:02:58.6]} 3. Nc3 {[%clk 0:03:00.4]} 3... d5 {[%clk 0:02:59]} 4. cxd5
{[%clk 0:03:00.7]} 4... Nxd5 {[%clk 0:02:59.7]} 5. e4 {[%clk 0:03:01.4]} 5...
Nxc3 {[%clk 0:02:59.5]} 6. bxc3 {[%clk 0:03:02.3]} 6... Bg7 {[%clk 0:02:59.9]}
7. Nf3 {[%clk 0:03:03]} 7... O-O {[%clk 0:03:00]} 8. h3 {[%clk 0:03:03.7]} 8...
c5 {[%clk 0:03:00.5]} 9. Be2 {[%clk 0:03:04]} 9... Nc6 {[%clk 0:03:01]} 10. Be3
{[%clk 0:03:03.4]} 10... cxd4 {[%clk 0:03:01.6]} 11. cxd4 {[%clk 0:03:04.3]}
11... Qa5+ {[%clk 0:02:58.4]} 12. Bd2 {[%clk 0:03:04.3]} 12... Qa3 {[%clk
0:02:57.3]} 13. d5 {[%clk 0:03:04.2]} 13... Nd4 {[%clk 0:02:38.4]} 14. Nxd4
{[%clk 0:03:03.6]} 14... Bxd4 {[%clk 0:02:39]} 15. Rb1 {[%clk 0:03:04.4]} 15...
Qxa2 {[%clk 0:02:17.8]} 16. O-O {[%clk 0:03:01.9]} 16... Bg7 {[%clk 0:02:11.2]}
17. Bb4 {[%clk 0:02:58.9]} 17... Bf6 {[%clk 0:02:00.4]} 18. f4 {[%clk
0:02:52.1]} 18... Rd8 {[%clk 0:01:55.6]} 19. Bd3 {[%clk 0:02:28.8]} 19... a5
{[%clk 0:01:24.4]} 20. Bc5 {[%clk 0:02:28.9]} 20... Bd7 {[%clk 0:00:59.9]} 21.
Rf2 {[%clk 0:02:28.5]} 21... Qa4 {[%clk 0:00:58.9]} 22. Qf3 {[%clk 0:02:01.3]}
22... Bd4 {[%clk 0:00:55.5]} 23. Bxe7 {[%clk 0:01:33.4]} 23... Re8 {[%clk
0:00:49]} 24. d6 {[%clk 0:01:29.4]} 24... Qa2 {[%clk 0:00:34.6]} 25. Rf1 {[%clk
0:01:28.1]} 25... a4 {[%clk 0:00:27.3]} 26. Kh1 {[%clk 0:01:27.8]} 26... Bxf2
{[%clk 0:00:27.3]} 27. Rxf2 {[%clk 0:01:28.7]} 27... Qa1+ {[%clk 0:00:27.2]} 28.
Rf1 {[%clk 0:01:29.2]} 28... Qd4 {[%clk 0:00:27.5]} 29. f5 {[%clk 0:01:24]}
29... Qg7 {[%clk 0:00:20.9]} 30. fxg6 {[%clk 0:01:16.8]} 30... hxg6 {[%clk
0:00:20.1]} 31. Bc4 {[%clk 0:01:16.1]} 31... Be6 {[%clk 0:00:20.7]} 32. Bxe6
{[%clk 0:01:10.9]} 32... fxe6 {[%clk 0:00:21.6]} 33. Qg4 {[%clk 0:01:11.4]}
33... a3 {[%clk 0:00:05.1]} 34. Qxe6+ {[%clk 0:01:06.2]} 34... Kh8 {[%clk
0:00:05.5]} 35. Rf4 {[%clk 0:00:54.3]} 35... g5 {[%clk 0:00:04.6]} 36. Rf6
{[%clk 0:00:54.5]} 36... Kh7 {[%clk 0:00:03.4]} 37. Qf5+ {[%clk 0:00:53.1]}
37... Kg8 {[%clk 0:00:02.8]} 38. Rg6 {[%clk 0:00:42.4]} 38... a2 {[%clk
0:00:03.2]} 39. Rxg7+ {[%clk 0:00:40.1]} 39... Kxg7 {[%clk 0:00:03.5]} 40. Bf6+
{[%clk 0:00:40]} 40... Kf7 {[%clk 0:00:01.8]} 41. Ba1+ {[%clk 0:00:34.6]} 41...
Kg8 {[%clk 0:00:01.1]} 42. Qg6+ {[%clk 0:00:34.7]} 1-0

[Event "Late-Titled-Tuesday-Blitz-October-24-2023"]
[Site "Chess.com"]
[Date "2023.10.24"]
[Round "6"]
[White "Darko-Dimitrijevic"]
[Black "Felix-Rose"]
[Result "0-1"]
[WhiteElo "2111"]
[BlackElo "2323"]
[TimeControl "180+1"]
[EndTime "15:06:12 PDT"]
[Termination "Felix-Rose won on time"]

1. c4 {[%clk 0:03:00.9]} 1... e6 {[%clk 0:02:55.2]} 2. Nc3 {[%clk 0:02:59.8]}
2... d5 {[%clk 0:02:55.7]} 3. d4 {[%clk 0:02:59.9]} 3... Nf6 {[%clk 0:02:55.6]}
4. Nf3 {[%clk 0:02:59.9]} 4... Be7 {[%clk 0:02:52.6]} 5. Bg5 {[%clk 0:02:58.4]}
5... Nbd7 {[%clk 0:02:52.4]} 6. e3 {[%clk 0:02:57.8]} 6... h6 {[%clk 0:02:52.3]}
7. Bxf6 {[%clk 0:02:57]} 7... Nxf6 {[%clk 0:02:52.2]} 8. Be2 {[%clk 0:02:56.1]}
8... O-O {[%clk 0:02:52.3]} 9. O-O {[%clk 0:02:55.7]} 9... c5 {[%clk 0:02:52.8]}
10. dxc5 {[%clk 0:02:51.7]} 10... dxc4 {[%clk 0:02:48.1]} 11. Bxc4 {[%clk
0:02:49.3]} 11... Bxc5 {[%clk 0:02:47]} 12. Qe2 {[%clk 0:02:39.5]} 12... Qe7
{[%clk 0:02:44.8]} 13. e4 {[%clk 0:02:38.7]} 13... Rd8 {[%clk 0:02:35.1]} 14.
Rad1 {[%clk 0:02:33]} 14... a6 {[%clk 0:02:29.8]} 15. e5 {[%clk 0:02:31.9]}
15... Nd7 {[%clk 0:02:27]} 16. Ne4 {[%clk 0:02:30.9]} 16... b5 {[%clk
0:02:23.2]} 17. Bb3 {[%clk 0:02:05.8]} 17... Bb7 {[%clk 0:02:17.5]} 18. Rd3
{[%clk 0:02:04.2]} 18... Bb6 {[%clk 0:01:58.3]} 19. Rfd1 {[%clk 0:01:58.8]}
19... Bxe4 {[%clk 0:01:47.2]} 20. Qxe4 {[%clk 0:01:55.8]} 20... Nc5 {[%clk
0:01:45]} 21. Rxd8+ {[%clk 0:01:55]} 21... Rxd8 {[%clk 0:01:42.5]} 22. Qc2
{[%clk 0:01:50.8]} 22... Rxd1+ {[%clk 0:01:38.1]} 23. Qxd1 {[%clk 0:01:50.2]}
23... Nxb3 {[%clk 0:01:35.2]} 24. axb3 {[%clk 0:01:48.5]} 24... Qc5 {[%clk
0:01:33.8]} 25. Qd2 {[%clk 0:01:43.7]} 25... a5 {[%clk 0:01:06.8]} 26. g3 {[%clk
0:01:41.1]} 26... g6 {[%clk 0:00:57.8]} 27. Kg2 {[%clk 0:01:39.9]} 27... Kg7
{[%clk 0:00:57.9]} 28. h4 {[%clk 0:01:37.1]} 28... b4 {[%clk 0:00:47.9]} 29. Qe2
{[%clk 0:01:05.6]} 29... Qc6 {[%clk 0:00:45.5]} 30. Qd3 {[%clk 0:00:59.3]} 30...
Qc5 {[%clk 0:00:43.1]} 31. Qe2 {[%clk 0:00:58.6]} 31... Qd5 {[%clk 0:00:43.1]}
32. Qc2 {[%clk 0:00:51]} 32... Bd4 {[%clk 0:00:35.2]} 33. h5 {[%clk 0:00:14.6]}
33... g5 {[%clk 0:00:33]} 34. Qe2 {[%clk 0:00:07.6]} 34... g4 {[%clk 0:00:28.1]}
0-1